fUST/lending_fUST_20260122
["ID","MTS","AMOUNT","RATE_DAILY","PERIOD"]
[403019462,1769071191347,-128.50511971,0.00014632,2]
[403019463,1769071206251,500.85735596,0.00013273,2]
[403019464,1769071232380,-105.11488029,0.00014632,2]
[403019465,1769071232402,-81.32326429,0.00014742,2]
[403019466,1769071236302,-68.67673571,0.00014742,2]
[403019467,1769071236329,-348.3877447,0.00015243,2]
[403019468,1769071236357,-55.63103918,0.00015328,2]
[403019469,1769071236411,-411.60896082,0.00015328,2]
[403019470,1769071263307,500.0,0.00013273,2]
[403019471,1769071265653,-472.69551959,0.00013699,2]
[403019472,1769071278776,-28.34010846,0.00013699,2]
[403019473,1769071278798,-136.46837677,0.00013821,2]
[403019475,1769071283403,-185.65918435,0.00013821,2]
[403019476,1769071284928,-158.03081565,0.00013821,2]
[403019477,1769071324298,548.73129574,0.00013273,2]
[403019478,1769071327167,440.05898548,0.00013273,2]
[403019479,1769071333035,-500.0,0.00013699,2]
[403019480,1769071336350,-0.80262442,0.00013699,2]
[403019481,1769071336371,-174.85093518,0.00013699,2]
[403019482,1769071352275,-316.87,0.00013699,2]
[403019483,1769071383116,503.26528953,0.00013273,2]
[403019484,1769071383167,503.07336157,0.00013273,2]
[403019485,1769071383198,163.01300878,0.00013273,2]
[403019486,1769071432037,-10.16535363,0.00013699,2]
[403019487,1769071432059,-173.26489442,0.00013699,2]
[403019488,1769071432078,-15.98177611,0.00013821,2]
[403019489,1769071432098,-177.1348495,0.00013905,2]
[403019490,1769071432119,-239.48,0.00014906,2]
[403019491,1769071432142,-383.97312634,0.00015616,2]
[403019492,1769071436925,-94.99687366,0.00015616,2]
[403019493,1769071436951,-718.45,0.00016326,2]
[403019494,1769071436974,-177.0,0.00016742,2]
[403019495,1769071436998,-9.55312634,0.00016769,2]
[403019496,1769071438305,-338.83461836,0.00016769,2]
[403019497,1769071438329,-661.16538164,0.00017036,2]
[403019498,1769071438661,-296.77461836,0.00017036,2]
[403019499,1769071438687,-177.1348495,0.00017069,2]
[403019500,1769071438708,-526.09053214,0.00017073,2]
[403019501,1769071438992,-515.57613453,0.00017073,2]
[403019502,1769071439018,-484.42386547,0.00017746,2]
[403019503,1769071439313,-712.99613453,0.00017746,2]
[403019504,1769071439339,-287.00386547,0.00017853,2]
[403019505,1769071439630,-1000.0,0.00017853,2]
[403019506,1769071439931,-1000.0,0.00017853,2]
[403019507,1769071440260,-1000.0,0.00017853,2]
[403019508,1769071440634,-1000.0,0.00017853,2]
[403019509,1769071441149,-1000.0,0.00017853,2]
[403019510,1769071441742,-1000.0,0.00017853,2]
[403019511,1769071443411,-300.0,0.00017852,2]
[403019512,1769071443436,-700.0,0.00017853,2]
[403019513,1769071443960,501.4211005,0.00013273,2]
[403019514,1769071444162,501.68029272,0.00013273,2]
[403019515,1769071444826,-1000.0,0.00017853,2]
[403019516,1769071446105,501.70214979,0.00013273,2]
[403019517,1769071446224,165.8312351,0.00013273,2]
[403019518,1769071446361,218.3308355,0.00013273,2]
[403019519,1769071447394,504.663903,0.00013273,2]
[403019520,1769071447423,502.18038779,0.00013273,2]
[403019521,1769071447973,-311.15849552,0.00013699,2]
[403019522,1769071449347,-191.12118663,0.00013699,2]
[403019523,1769071449368,-308.87881337,0.00013699,2]
[403019524,1769071456640,-192.32418924,0.00013699,2]
[403019525,1769071501823,-300.0,0.00017852,2]
[403019526,1769071501864,-707.67581076,0.00017853,2]
[403019527,1769071503715,197.72,0.00014989,2]
[403019528,1769071532086,-202.60010965,0.00015703,2]
[403019529,1769071564722,500.52511261,0.00013273,2]
[403019530,1769071623354,500.29635041,0.00013273,2]
[403019531,1769071626844,-184.24692763,0.00013699,2]
[403019532,1769071628561,-205.67296272,0.00013699,2]
[403019533,1769071631831,-110.80183916,0.00013699,2]
[403019534,1769071631856,-163.35546267,0.00013699,2]
[403019535,1769071631877,-395.98061216,0.00013699,2]
[403019536,1769071657832,-52.98061216,0.00013699,2]
[403019537,1769071673580,-51.03877568,0.00013699,2]
[403019538,1769071673602,-98.96122432,0.00014967,2]
[403019539,1769071736854,-101.20877568,0.00014967,2]
[403019540,1769071736883,-400.34,0.0001568,2]
[403019541,1769071736911,-150.0,0.00015969,2]
[403019542,1769071736940,-462.81,0.00016235,3]
[403019543,1769071736967,-154.27,0.00016235,3]
[403019544,1769071736994,-462.85,0.00016235,3]
[403019545,1769071737023,-300.0,0.00016243,2]
[403019546,1769071737050,-197.13973413,0.00016244,2]
[403019547,1769071737078,-438.85124288,0.00016244,2]
[403019548,1769071737105,-500.0,0.00016244,2]
[403019549,1769071737131,-393.54628948,0.00016244,2]
[403019550,1769071737160,-500.0,0.00016244,2]
[403019551,1769071737188,-500.0,0.00016244,2]
[403019552,1769071737216,-377.97791566,0.00016244,2]
[403019553,1769071737712,-122.02208434,0.00016244,2]
[403019554,1769071737743,-500.0,0.00016244,2]
[403019555,1769071737776,-500.0,0.00016244,2]
[403019556,1769071737805,-500.0,0.00016244,2]
[403019557,1769071737833,-500.0,0.00016244,2]
[403019558,1769071737861,-500.0,0.00016244,2]
[403019559,1769071737889,-312.17580465,0.00016244,2]
[403019560,1769071737915,-500.0,0.00016244,2]
[403019561,1769071737944,-500.0,0.00016244,2]
[403019562,1769071737974,-500.0,0.00016244,2]
[403019563,1769071738004,-500.0,0.00016244,2]
[403019564,1769071738246,-419.49507728,0.00016244,2]
[403019565,1769071738278,-500.0,0.00016244,2]
[403019566,1769071738308,-500.0,0.00016244,2]
[403019567,1769071738338,-500.0,0.00016244,2]
[403019568,1769071738364,-500.0,0.00016244,2]
[403019569,1769071738394,-500.0,0.00016244,2]
[403019570,1769071738423,-553.79314708,0.00016244,2]
[403019571,1769071738450,-500.0,0.00016244,2]
[403019572,1769071738479,-500.0,0.00016244,2]
[403019573,1769071738507,-500.0,0.00016244,2]
[403019574,1769071738546,-500.0,0.00016244,2]
[403019575,1769071738575,-500.0,0.00016244,2]
[403019576,1769071738604,-500.0,0.00016244,2]
[403019577,1769071738632,-500.0,0.00016244,2]
[403019578,1769071738660,-500.0,0.00016244,2]
[403019579,1769071738688,-500.0,0.00016244,2]
[403019580,1769071738716,-500.0,0.00016244,2]
[403019581,1769071738744,-500.0,0.00016244,2]
[403019582,1769071738777,-500.0,0.00016244,2]
[403019583,1769071738806,-500.0,0.00016244,2]
[403019584,1769071738851,-500.0,0.00016244,2]
[403019585,1769071738880,-500.0,0.00016244,2]
[403019586,1769071738910,-352.79966538,0.00016244,2]
[403019587,1769071738939,-500.0,0.00016244,2]
[403019588,1769071738967,-500.0,0.00016244,2]
[403019589,1769071738998,-500.0,0.00016244,2]
[403019590,1769071739029,-500.0,0.00016244,2]
[403019591,1769071739056,-500.0,0.00016244,2]
[403019592,1769071739085,-500.0,0.00016244,2]
[403019593,1769071739116,-500.0,0.00016244,2]
[403019594,1769071739159,-500.0,0.00016244,2]
[403019595,1769071739190,-500.0,0.00016244,2]
[403019596,1769071739218,-500.0,0.00016244,2]
[403019597,1769071739250,-500.0,0.00016244,2]
[403019598,1769071739278,-500.0,0.00016244,2]
[403019599,1769071739308,-500.0,0.00016244,2]
[403019600,1769071739337,-500.0,0.00016244,2]
[403019601,1769071739366,-500.0,0.00016244,2]
[403019602,1769071739396,-500.0,0.00016244,2]
[403019603,1769071739425,-500.0,0.00016244,2]
[403019604,1769071739775,-500.0,0.00016244,2]
[403019605,1769071739808,-500.0,0.00016244,2]
[403019606,1769071739841,-500.0,0.00016244,2]
[403019607,1769071739870,-500.0,0.00016244,2]
[403019608,1769071739899,-500.0,0.00016244,2]
[403019609,1769071739928,-500.0,0.00016244,2]
[403019610,1769071739957,-500.0,0.00016244,2]
[403019611,1769071739987,-500.0,0.00016244,2]
[403019612,1769071740018,-500.0,0.00016244,2]
[403019613,1769071740047,-500.0,0.00016244,2]
[403019615,1769071740702,-500.0,0.00016244,2]
[403019616,1769071740740,-500.0,0.00016244,2]
[403019617,1769071740780,-500.0,0.00016244,2]
[403019618,1769071740815,-500.0,0.00016244,2]
[403019619,1769071740852,-500.0,0.00016244,2]
[403019620,1769071740897,-500.0,0.00016244,2]
[403019621,1769071740939,-500.0,0.00016244,2]
[403019622,1769071740973,-500.0,0.00016244,2]
[403019623,1769071741011,-500.0,0.00016244,2]
[403019624,1769071741047,-250.0,0.00016244,2]
[403019625,1769071741084,-0.01,0.00016244,2]
[403019626,1769071741245,-499.99,0.00016244,2]
[403019627,1769071741283,-500.0,0.00016244,2]
[403019628,1769071741325,-500.0,0.00016244,2]
[403019629,1769071741374,-500.0,0.00016244,2]
[403019630,1769071741410,-500.0,0.00016244,2]
[403019631,1769071741446,-500.0,0.00016244,2]
[403019632,1769071741482,-500.0,0.00016244,2]
[403019633,1769071741518,-500.0,0.00016244,2]
[403019634,1769071741558,-500.0,0.00016244,2]
[403019635,1769071741594,-500.0,0.00016244,2]
[403019636,1769071743871,-500.0,0.00016244,2]
[403019637,1769071743902,-500.0,0.00016244,2]
[403019638,1769071743931,-500.0,0.00016244,2]
[403019639,1769071743960,-500.0,0.00016244,2]
[403019640,1769071743989,-500.0,0.00016244,2]
[403019641,1769071744019,-500.0,0.00016244,2]
[403019642,1769071744048,-500.0,0.00016244,2]
[403019643,1769071744078,-500.0,0.00016244,2]
[403019644,1769071744107,-394.97574199,0.00016244,2]
[403019645,1769071744136,-500.0,0.00016244,2]
[403019646,1769071744258,-500.0,0.00016244,2]
[403019647,1769071744288,-500.0,0.00016244,2]
[403019648,1769071744323,-500.0,0.00016244,2]
[403019649,1769071744351,-500.0,0.00016244,2]
[403019650,1769071744379,-500.0,0.00016244,2]
[403019651,1769071744409,-500.0,0.00016244,2]
[403019652,1769071744437,-500.0,0.00016244,2]
[403019653,1769071744465,-500.0,0.00016244,2]
[403019654,1769071744493,-500.0,0.00016244,2]
[403019655,1769071744520,-500.0,0.00016244,2]
[403019656,1769071744620,-500.0,0.00016244,2]
[403019657,1769071744648,-500.0,0.00016244,2]
[403019658,1769071744678,-500.0,0.00016244,2]
[403019659,1769071744707,-500.0,0.00016244,2]
[403019660,1769071744734,-500.0,0.00016244,2]
[403019661,1769071744762,-500.0,0.00016244,2]
[403019662,1769071744790,-500.0,0.00016244,2]
[403019663,1769071744822,-500.0,0.00016244,2]
[403019664,1769071744852,-500.0,0.00016244,2]
[403019665,1769071744880,-500.0,0.00016244,2]
[403019666,1769071744918,-500.0,0.00016244,2]
[403019667,1769071744946,-500.0,0.00016244,2]
[403019668,1769071744975,-500.0,0.00016244,2]
[403019669,1769071745003,-500.0,0.00016244,2]
[403019670,1769071745031,-500.0,0.00016244,2]
[403019671,1769071745059,-500.0,0.00016244,2]
[403019672,1769071745090,-500.0,0.00016244,2]
[403019673,1769071745117,-500.0,0.00016244,2]
[403019674,1769071745146,-500.0,0.00016244,2]
[403019675,1769071745175,-500.0,0.00016244,2]
[403019676,1769071752182,-192.53,0.00014982,2]
[403019677,1769071752212,-385.06,0.00015696,2]
[403019678,1769071752240,-300.0,0.00016243,2]
[403019679,1769071752268,-500.0,0.00016244,2]
[403019680,1769071752297,-500.0,0.00016244,2]
[403019681,1769071752327,-500.0,0.00016244,2]
[403019682,1769071752355,-500.0,0.00016244,2]
[403019683,1769071752384,-500.0,0.00016244,2]
[403019684,1769071752415,-546.10791173,0.00016244,2]
[403019685,1769071752444,-500.0,0.00016244,2]
[403019686,1769071752472,-500.0,0.00016244,2]
[403019687,1769071752656,-500.0,0.00016244,2]
[403019688,1769071752686,-500.0,0.00016244,2]
[403019689,1769071752716,-500.0,0.00016244,2]
[403019690,1769071752745,-500.0,0.00016244,2]
[403019691,1769071752779,-500.0,0.00016244,2]
[403019692,1769071752807,-500.0,0.00016244,2]
[403019693,1769071752841,-524.83621422,0.00016244,2]
[403019694,1769071752872,-500.0,0.00016244,2]
[403019695,1769071752900,-552.38359609,0.00016244,2]
[403019696,1769071752929,-345.57037938,0.00016244,2]
[403019697,1769071753201,-154.42962062,0.00016244,2]
[403019698,1769071753233,-500.0,0.00016244,2]
[403019699,1769071753262,-500.0,0.00016244,2]
[403019700,1769071753290,-500.0,0.00016244,2]
[403019701,1769071753320,-500.0,0.00016244,2]
[403019702,1769071753348,-500.0,0.00016244,2]
[403019703,1769071753375,-500.0,0.00016244,2]
[403019704,1769071753403,-500.0,0.00016244,2]
[403019705,1769071753432,-500.0,0.00016244,2]
[403019706,1769071753460,-500.0,0.00016244,2]
[403019707,1769071753491,-191.15075876,0.00016244,2]
[403019708,1769071756493,-271.62,0.00013273,2]
[403019709,1769071758382,-191.60630838,0.00013273,2]
[403019710,1769071758409,-528.26553124,0.00013273,2]
[403019711,1769071758436,-500.0,0.00013273,2]
[403019712,1769071758463,-500.0,0.00013699,2]
[403019713,1769071758492,-308.84924124,0.00016244,2]
[403019714,1769071758522,-500.0,0.00016244,2]
[403019715,1769071758552,-500.0,0.00016244,2]
[403019716,1769071758584,-500.0,0.00016244,2]
[403019717,1769071758614,-500.0,0.00016244,2]
[403019718,1769071758645,-500.0,0.00016244,2]
[403019719,1769071758675,-442.56783828,0.00016244,2]
[403019720,1769071758918,-57.43216172,0.00016244,2]
[403019721,1769071758946,-500.0,0.00016244,2]
[403019722,1769071758976,-500.0,0.00016244,2]
[403019723,1769071759006,-500.0,0.00016244,2]
[403019724,1769071759036,-500.0,0.00016244,2]
[403019725,1769071759066,-500.0,0.00016244,2]
[403019726,1769071759094,-500.0,0.00016244,2]
[403019727,1769071759123,-500.0,0.00016244,2]
[403019728,1769071759152,-500.0,0.00016244,2]
[403019729,1769071759181,-500.0,0.00016244,2]
[403019730,1769071759214,-385.14567656,0.00016244,2]
[403019731,1769071759385,-114.85432344,0.00016244,2]
[403019732,1769071759414,-500.0,0.00016244,2]
[403019733,1769071759444,-500.0,0.00016244,2]
[403019734,1769071759473,-500.0,0.00016244,2]
[403019735,1769071759503,-500.0,0.00016244,2]
[403019736,1769071759533,-500.0,0.00016244,2]
[403019737,1769071759564,-500.0,0.00016244,2]
[403019738,1769071759593,-500.0,0.00016244,2]
[403019739,1769071759620,-500.0,0.00016244,2]
[403019740,1769071759649,-500.0,0.00016244,2]
[403019741,1769071759679,-270.30135312,0.00016244,2]
[403019742,1769071759719,-229.69864688,0.00016244,2]
[403019743,1769071759748,-500.0,0.00016244,2]
[403019744,1769071759779,-500.0,0.00016244,2]
[403019745,1769071759808,-500.0,0.00016244,2]
[403019746,1769071759837,-500.0,0.00016244,2]
[403019747,1769071759865,-500.0,0.00016244,2]
[403019748,1769071759894,-500.0,0.00016244,2]
[403019749,1769071759922,-500.0,0.00016244,2]
[403019750,1769071759950,-500.0,0.00016244,2]
[403019751,1769071759982,-500.0,0.00016244,2]
[403019752,1769071760011,-40.61270624,0.00016244,2]
[403019753,1769071760076,-459.38729376,0.00016244,2]
[403019754,1769071760261,-500.0,0.00016244,2]
[403019755,1769071760289,-500.0,0.00016244,2]
[403019756,1769071760317,-500.0,0.00016244,2]
[403019757,1769071760346,-500.0,0.00016244,2]
[403019758,1769071760376,-500.0,0.00016244,2]
[403019759,1769071760405,-500.0,0.00016244,2]
[403019760,1769071760433,-500.0,0.00016244,2]
[403019761,1769071760460,-450.0,0.00016244,2]
[403019762,1769071760489,-500.00000001,0.00016244,2]
[403019763,1769071801188,181.23541246,0.00016243,2]
[403019764,1769071801209,118.76458754,0.00016243,2]
[403019765,1769071802563,300.0,0.00016243,2]
[403019766,1769071802590,300.0,0.00016243,2]
[403019767,1769071802632,300.0,0.00016243,2]
[403019768,1769071803913,500.87867221,0.00013273,2]
[403019769,1769071806215,281.48726435,0.00013273,2]
[403019770,1769071806289,328.44568428,0.00013273,2]
[403019771,1769071806603,502.25914102,0.00013273,2]
[403019772,1769071807819,164.2137581,0.00013273,2]
[403019773,1769071808902,1200.0,0.00016243,2]
[403019774,1769071815415,500.0,0.00013273,2]
[403019775,1769071817536,500.0,0.00013273,2]
[403019776,1769071817605,513.71993352,0.00013273,2]
[403019777,1769071817866,300.0,0.00013673,2]
[403019778,1769071831049,624.02,0.00014988,2]
[403019792,1769071832138,1248.04,0.00015702,2]
[403019800,1769071837964,-1798.35867825,0.00016244,2]
[403019801,1769071838070,-40214.63745628,0.00016244,2]
[403019802,1769071838079,-154362.0698672,0.00016245,2]
[403019803,1769071838088,-1009.473721,0.00016245,2]
[403019804,1769071838097,-1009.473721,0.00016245,2]
[403019805,1769071838106,-1009.473721,0.00016245,2]
[403019806,1769071838115,-1009.473721,0.00016245,2]
[403019807,1769071838125,-2085.40439452,0.00016304,2]
[403019808,1769071838134,-1872.06,0.00016415,2]
[403019809,1769071838143,-152.97613697,0.00017056,2]
[403019810,1769071838152,-2496.08,0.00017129,2]
[403019811,1769071838162,-2085.40439448,0.00017178,2]
[403019812,1769071838171,-925.62,0.00017605,3]
[403019813,1769071838181,-462.82,0.00017605,3]
[403019814,1769071838190,-308.54,0.00017605,3]
[403019815,1769071838199,-300.0,0.00017754,2]
[403019816,1769071838208,-420.0,0.00017754,2]
[403019817,1769071838220,-420.0,0.00017754,2]
[403019818,1769071838230,-1041.66666667,0.00017841,2]
[403019819,1769071838239,-1680.0,0.00017843,2]
[403019820,1769071838248,-3120.1,0.00017843,2]
[403019821,1769071838257,-1003.58134675,0.00017852,2]
[403019822,1769071838466,-1090.41215118,0.00017853,2]
[403019823,1769071838476,-177.0,0.00017969,2]
[403019824,1769071838486,-2085.40439448,0.00018052,2]
[403019825,1769071838496,-348.3877447,0.00018295,2]
[403019826,1769071838506,-3744.12,0.00018556,2]
[403019827,1769071838515,-2085.40439448,0.00018925,2]
[403019828,1769071838524,-151.0,0.00018985,2]
[403019829,1769071838533,-151.0,0.00018985,2]
[403019830,1769071838543,-151.0,0.00018985,2]
[403019831,1769071838552,-151.0,0.00018985,2]
[403019832,1769071838562,-151.0,0.00018985,2]
[403019833,1769071838571,-151.0,0.00018985,2]
[403019834,1769071838581,-246.77995892,0.00018985,2]
[403019835,1769071838590,-500.0,0.00018996,2]
[403019836,1769071838599,-500.0,0.00018996,2]
[403019837,1769071838609,-1009.473721,0.00018996,2]
[403019838,1769071838619,-1009.473721,0.00018996,2]
[403019839,1769071838628,-1009.473721,0.00018996,2]
[403019840,1769071838636,-1009.473721,0.00018996,2]
[403019841,1769071838645,-500.0,0.00018997,2]
[403019842,1769071838654,-500.0,0.00018997,2]
[403019843,1769071838663,-500.0,0.00018997,2]
[403019844,1769071838672,-1302.61003646,0.00018998,2]
[403019845,1769071838681,-500.0,0.00018998,2]
[403019846,1769071838690,-1768.65,0.00019178,2]
[403019847,1769071838699,-1768.65,0.00019178,2]
[403019848,1769071838707,-1768.65,0.00019178,2]
[403019849,1769071838716,-1768.65,0.00019178,2]
[403019850,1769071838725,-1768.65,0.00019178,2]
[403019851,1769071838733,-1294.130987,0.00019178,2]
[403019852,1769071838742,-1294.130987,0.00019178,2]
[403019853,1769071838751,-1294.130987,0.00019178,2]
[403019854,1769071838760,-1294.130987,0.00019178,2]
[403019855,1769071838769,-487.054864,0.00019178,2]
[403019856,1769071838777,-487.054864,0.00019178,2]
[403019857,1769071838786,-487.054864,0.00019178,2]
[403019858,1769071838795,-487.054864,0.00019178,2]
[403019859,1769071838804,-487.054864,0.00019178,2]
[403019860,1769071838812,-487.054864,0.00019178,2]
[403019861,1769071838821,-487.054864,0.00019178,2]
[403019862,1769071838833,-487.054864,0.00019178,2]
[403019863,1769071838842,-379.442346,0.00019178,2]
[403019864,1769071838852,-379.442346,0.00019178,2]
[403019865,1769071838861,-379.442346,0.00019178,2]
[403019866,1769071838871,-379.442346,0.00019178,2]
[403019867,1769071838880,-379.442346,0.00019178,2]
[403019868,1769071838888,-379.442346,0.00019178,2]
[403019869,1769071838897,-379.442346,0.00019178,2]
[403019870,1769071838906,-379.442346,0.00019178,2]
[403019871,1769071838916,-4368.14,0.0001927,2]
[403019872,1769071838924,-500.0,0.00019271,2]
[403019873,1769071838933,-180.44672896,0.00019304,2]
[403019874,1769071838942,-820.0,0.000194,2]
[403019875,1769071838951,-587.0,0.00019407,2]
[403019876,1769071838960,-334.0,0.00019407,2]
[403019877,1769071838970,-151.0,0.000195,2]
[403019878,1769071838979,-157.0,0.00019534,3]
[403019879,1769071838988,-500.0,0.00019545,2]
[403019880,1769071838997,-2351.0,0.00019602,2]
[403019881,1769071839006,-237.15,0.000197,2]
[403019882,1769071839015,-2242.0,0.00019719,2]
[403019883,1769071839024,-2242.0,0.00019779,2]
[403019884,1769071839033,-638.22566837,0.00019799,2]
[403019885,1769071839043,-2085.40439448,0.00019799,2]
[403019886,1769071839053,-1768.65,0.00019799,2]
[403019887,1769071839063,-151.0,0.000198,2]
[403019888,1769071839073,-151.0,0.000198,2]
[403019889,1769071839082,-151.0,0.000198,2]
[403019890,1769071839091,-151.0,0.000198,2]
[403019891,1769071839101,-151.0,0.000198,2]
[403019892,1769071839110,-151.0,0.000198,2]
[403019893,1769071839119,-3324.9153185,0.00019814,2]
[403019894,1769071839130,-1009.473721,0.00019814,2]
[403019895,1769071839139,-1009.473721,0.00019814,2]
[403019896,1769071839148,-1009.473721,0.00019814,2]
[403019897,1769071839159,-1009.473721,0.00019814,2]
[403019898,1769071839168,-487.054864,0.00019814,2]
[403019899,1769071839178,-487.054864,0.00019814,2]
[403019900,1769071839187,-487.054864,0.00019814,2]
[403019901,1769071839196,-487.054864,0.00019814,2]
[403019902,1769071839205,-379.442346,0.00019814,2]
[403019903,1769071839215,-379.442346,0.00019814,2]
[403019904,1769071839225,-379.442346,0.00019814,2]
[403019905,1769071839235,-379.442346,0.00019814,2]
[403019906,1769071839244,-1294.130987,0.00019816,2]
[403019907,1769071839253,-1294.130987,0.00019816,2]
[403019908,1769071839262,-1294.130987,0.00019816,2]
[403019909,1769071839272,-1294.130987,0.00019816,2]
[403019910,1769071839282,-2242.0,0.00019816,2]
[403019911,1769071839291,-500.0,0.00019819,2]
[403019912,1769071839300,-2242.0,0.00019836,2]
[403019913,1769071839310,-2242.0,0.00019843,2]
[403019914,1769071839319,-151.0,0.00019843,2]
[403019916,1769071839328,-205.304388,0.00019843,2]
[403019917,1769071839337,-154.763112,0.00019843,2]
[403019918,1769071839347,-205.304388,0.00019843,2]
[403019919,1769071839355,-154.763112,0.00019843,2]
[403019920,1769071839364,-205.304388,0.00019843,2]
[403019921,1769071839373,-2242.0,0.00019877,2]
[403019922,1769071839383,-2242.0,0.00019886,2]
[403019923,1769071839392,-1768.65,0.00019897,2]
[403019924,1769071839401,-160.15762404,0.00019898,2]
[403019925,1769071839410,-200.3701185,0.00019898,2]
[403019926,1769071839419,-1768.65,0.00019898,2]
[403019927,1769071839429,-1768.65,0.00019898,2]
[403019928,1769071839438,-1768.65,0.00019898,2]
[403019929,1769071839447,-1768.65,0.00019898,2]
[403019930,1769071839456,-1768.65,0.00019898,2]
[403019931,1769071839466,-1768.65,0.00019898,2]
[403019932,1769071839475,-1768.65,0.00019898,2]
[403019933,1769071839485,-1768.65,0.00019898,2]
[403019934,1769071839494,-1768.65,0.00019898,2]
[403019935,1769071839503,-1768.65,0.00019898,2]
[403019936,1769071839513,-1768.65,0.00019898,2]
[403019937,1769071839523,-1768.65,0.00019898,2]
[403019939,1769071839532,-1768.65,0.00019898,2]
[403019940,1769071839541,-1768.65,0.00019898,2]
[403019941,1769071839551,-1768.65,0.00019898,2]
[403019942,1769071839560,-1768.65,0.00019898,2]
[403019943,1769071839570,-1768.69888393,0.00019898,2]
[403019944,1769071839580,-487.054864,0.00019898,2]
[403019947,1769071839590,-487.054864,0.00019898,2]
[403019948,1769071839599,-487.054864,0.00019898,2]
[403019949,1769071839608,-487.054864,0.00019898,2]
[403019950,1769071839618,-379.442346,0.00019898,2]
[403019951,1769071839627,-379.442346,0.00019898,2]
[403019952,1769071839637,-379.442346,0.00019898,2]
[403019954,1769071839647,-379.442346,0.00019898,2]
[403019956,1769071839656,-171.73,0.00019898,2]
[403019957,1769071839665,-1294.130987,0.00019898,2]
[403019959,1769071839674,-1294.130987,0.00019898,2]
[403019960,1769071839684,-1294.130987,0.00019898,2]
[403019961,1769071839693,-1294.130987,0.00019898,2]
[403019962,1769071839702,-1000000.0,0.00019899,2]
[403019963,1769071839711,-1469.31,0.00019899,2]
[403019964,1769071839720,-1469.31,0.00019899,2]
[403019965,1769071839729,-1469.31,0.00019899,2]
[403019966,1769071839738,-1009.473721,0.00019899,2]
[403019967,1769071839747,-1009.473721,0.00019899,2]
[403019968,1769071839756,-1009.473721,0.00019899,2]
[403019969,1769071839766,-1009.473721,0.00019899,2]
[403019970,1769071839775,-487.054864,0.00019899,2]
[403019971,1769071839784,-487.054864,0.00019899,2]
[403019972,1769071839793,-487.054864,0.00019899,2]
[403019973,1769071839803,-487.054858,0.00019899,2]
[403019974,1769071839812,-379.442346,0.00019899,2]
[403019975,1769071839821,-379.442346,0.00019899,2]
[403019976,1769071839831,-379.442346,0.00019899,2]
[403019977,1769071839845,-379.442351,0.00019899,2]
[403019978,1769071839856,-1294.130987,0.00019899,2]
[403019979,1769071839865,-1294.130987,0.00019899,2]
[403019980,1769071839875,-1294.130987,0.00019899,2]
[403019981,1769071839886,-1294.130987,0.00019899,2]
[403019982,1769071839895,-1294.130987,0.00019899,2]
[403019983,1769071839904,-1294.130987,0.00019899,2]
[403019984,1769071839916,-1294.130987,0.00019899,2]
[403019985,1769071839926,-1294.130992,0.00019899,2]
[403019986,1769071839935,-290.621884,0.00019899,2]
[403019987,1769071839945,-205.304388,0.00019899,2]
[403019988,1769071839955,-154.763112,0.00019899,2]
[403019989,1769071839964,-205.304388,0.00019899,2]
[403019990,1769071839973,-154.763112,0.00019899,2]